Cogmind - Beta 10 @@@ ROGUE MODE // 2020.09.16 @ 17:57:54 Player: StarSirius Result: Destroyed by G-47 Trooper with Particle Gun Performance ------------- Evolutions (0) 0 Regions Visited (1) 200 Robots Destroyed (1) 5 Value Destroyed (34) 34 Prototype IDs (0) 0 Alien Tech Used (0) 0 Bonus (0) 0 TOTAL SCORE: 239 Bonus ------- None Cogmind --------- Core Integrity 0/250 Matter 259/300 Energy 85/100 System Corruption 0% Temperature Cool (15) Movement Walking (120) Location -10/Materials Parts ------- > --- POWER (1) -------- (None) > --- PROPULSION (2) --- Light Treads Aluminum Leg > --- UTILITY (2) ------ Small Storage Unit > --- WEAPON (2) ------- (None) > --- INVENTORY (6) ---- Aluminum Leg Peak State ------------ > --- POWER ------------ Light Ion Engine > --- PROPULSION ------- Wheel Compact Wheel > --- UTILITY ---------- Small Storage Unit > --- WEAPON ----------- Medium Laser Small Laser > --- INVENTORY -------- Light Ion Engine Light Treads Light Treads Aluminum Leg [Rating: 6] Favorites ----------- Power Light Ion Engine Engine Light Ion Engine Propulsion Compact Wheel Treads Light Treads Leg Aluminum Leg Wheel Compact Wheel Utility Small Storage Unit Storage Small Storage Unit Weapon Small Laser Energy Gun Small Laser Ballistic Gun Light Assault Rifle Build | -11 -10 ------- Run | Scr Mat Slots Evolved . | . . Power . | . . Propulsion . | . . Utility . | . . Weapon . | . . Parts Attached 13 | 6 7 Power 2 | 1 1 Engine 2 | 1 1 Core . | . . Reactor . | . . Propulsion 5 | 2 3 Treads 2 | . 2 Leg 1 | . 1 Wheel 2 | 2 . Hover . | . . Flight . | . . Utility 1 | 1 . Device . | . . Storage 1 | 1 . Processor . | . . Hackware . | . . Protection . | . . Artifact . | . . Weapon 5 | 2 3 Energy Gun 4 | 2 2 Energy Cannon . | . . Ballistic Gun 1 | . 1 Ballistic Cannon . | . . Launcher . | . . Special Weapon . | . . Impact Weapon . | . . Slashing Weapon . | . . Piercing Weapon . | . . Special Melee Weapon . | . . Unidentified Prototypes . | . . Parts Lost 8 | . 8 Power 2 | . 2 Propulsion 3 | . 3 Utility . | . . Weapon 3 | . 3 Highest Loss Streak 8 | . 8 Average Slot Usage (%) 74 | . 74 Engine 11 | . 11 Treads 2 | . 2 Wheel 21 | . 21 Storage 14 | . 14 Energy Gun 20 | . 20 Ballistic Gun 3 | . 3 Naked Turns . | . . Heaviest Build 10 | 10 10 Greatest Support 26 | 26 26 Greatest Overweight (x) 2 | . 2 Average Overweight (x) . | . . Largest Inventory Capacity 6 | 6 6 Average Capacity 5 | 5 6 Most Carried 6 | 6 6 Average Carried 4 | 3 5 Final Capacity 6 | 6 6 Final Carried 6 | 6 1 Class Distribution -------------------- 100% | Mutant Dominant Class ---------------- Mutant | -10/Materials Resources | -11 -10 ----------- Run | Scr Mat Matter Collected 265 | 227 38 Remotely . | . . Salvage Created 38 | . 38 Parts 2 | . 2 Haulers Intercepted . | . . Recyclers Shooed . | . . Parts Field Recycled . | . . Retrieved Matter . | . . Parts Self-Destructed . | . . Prevented . | . . Kills | -11 -10 ------- Run | Scr Mat Combat Hostiles Destroyed 1 | . 1 Guns 1 | . 1 Classes Destroyed 1 | . 1 Grunt 1 | . 1 Best Kill Streak 1 | . 1 Combat Bots Only 1 | . 1 Max Kills in Single Turn 1 | . 1 Gunslinging . | . . Exploded . | . . Melee . | . . Uniques/NPCs Destroyed . | . . Combat | -11 -10 -------- Run | Scr Mat Damage Taken 877 | . 877 Core 260 | . 260 Absorbed by Shields . | . . Core Remaining (%) 100 | 100 . Volleys Fired 28 | 2 26 Largest 2 | 1 2 Hottest 90 | 40 90 Shots Fired 38 | 2 36 Gun 38 | 2 36 Cannon . | . . Launcher . | . . Special . | . . Kinetic 16 | . 16 Thermal 22 | 2 20 Explosive . | . . Electromagnetic . | . . Robot Hit Streak 19 | . 19 Robot Miss Streak 2 | . 2 Penetration Max . | . . Secondary Targets . | . . Shots Hit Robots 29 | . 29 Core Hits 6 | . 6 Critical Hits . | . . Critical Kills . | . . Critical Parts Destroyed . | . . Melee Attacks . | . . Impact . | . . Slashing . | . . Piercing . | . . Sneak Attacks . | . . Combat Hostiles . | . . Follow-up Attacks . | . . Damage Inflicted 286 | . 286 Guns 286 | . 286 Cannons . | . . Explosions . | . . Melee . | . . Ramming . | . . Kinetic 116 | . 116 Thermal 170 | . 170 Explosive . | . . Electromagnetic . | . . Impact . | . . Slashing . | . . Piercing . | . . Highest Corruption . | . . Average Corruption . | . . Corruption Purged . | . . Overload Shots . | . . Overflow Damage . | . . Projectiles . | . . Explosions . | . . Melee . | . . Knockbacks . | . . Impact . | . . Kinetic . | . . Secondary . | . . Self-Inflicted Damage . | . . Shots . | . . Rammed . | . . Targets Rammed . | . . Kicked . | . . Crushed . | . . Highest Temperature 216 | . 216 Average Temperature 80 | . 80 Received Heat Transfer 492 | . 492 Effects 2 | . 2 Interference 2 | . 2 Siege Activations . | . . Robots Corrupted . | . . Combat Hostiles . | . . Parts Fried . | . . Impact Corruptions . | . . Robots Melted . | . . Combat Hostiles . | . . Parts Melted . | . . Heat Transferred 435 | . 435 Parts Sabotaged . | . . Parts Stolen . | . . Parts Stripped . | . . Power Chain Reactions . | . . Missiles Intercepted . | . . Alert | -11 -10 ------- Run | Scr Mat Peak Influence 40 | . 40 Initial . | . . Average 6 | . 9 Maximum Alert Level . | . . Low Security (%) 100 | 100 100 Level 1 . | . . Level 2 . | . . Level 3 . | . . Level 4 . | . . Level 5 . | . . High Security . | . . Max Security . | . . Squads Dispatched . | . . Investigation . | . . Extermination . | . . Reinforcement . | . . Assault . | . . Garrison . | . . Intercept . | . . Construction Impeded . | . . Haulers Reinforced . | . . Stealth | -11 -10 --------- Run | Scr Mat Distress Signals 1 | . 1 Communications Jammed . | . . Distress Signals . | . . Times Spotted 5 | . 5 Peak Tracking Total 5 | . 5 Tactical Retreats 1 | . 1 Traps | -11 -10 ------- Run | Scr Mat Traps Triggered . | . . Indirectly . | . . Trap Hack Attempts . | . . Triggered . | . . Disarmed . | . . Reprogrammed . | . . Reused . | . . Traps Extracted . | . . Installed . | . . Triggered . | . . Machines | -11 -10 ---------- Run | Scr Mat Machines Disabled . | . . Max in Single Turn . | . . Machines Sabotaged . | . . Garrisons Compromised . | . . Overloaded Fab Kills . | . . Fab Network Shutdowns . | . . Hacking | -11 -10 --------- Run | Scr Mat Machines Accessed 3 | . 3 Terminals 3 | . 3 Fabricators . | . . Repair Stations . | . . Recycling Units . | . . Scanalyzers . | . . Garrison Access . | . . Total Hacks 6 | . 6 Successful 1 | . 1 Failed 5 | . 5 Catastrophic 2 | . 2 Database Lockouts . | . . Manual 6 | . 6 Terminals 6 | . 6 Fabricators . | . . Repair Stations . | . . Recycling Units . | . . Scanalyzers . | . . Garrison Access . | . . Terminal Hacks . | . . Fabricator Hacks . | . . Repair Station Hacks . | . . Recycling Unit Hacks . | . . Scanalyzer . | . . Garrison Access Hacks . | . . Unauthorized Hacks 1 | . 1 Terminals 1 | . 1 Botnet 1 | . 1 Fabricators . | . . Repair Stations . | . . Recycling Units . | . . Scanalyzers . | . . Garrison Access . | . . Data Cores Recovered . | . . Used . | . . Hacking Detections 3 | . 3 Full Trace Events . | . . Feedback Events . | . . Feedback Blocked . | . . Robot Schematics Acquired . | . . Robots Built . | . . Matter . | . . Time . | . . Total Robot Build Rating . | . . Part Schematics Acquired . | . . Parts Built . | . . Matter . | . . Time . | . . Total Part Build Rating . | . . Parts Repaired . | . . Time . | . . Parts Recycled . | . . Recycled Matter . | . . Retrieved Matter . | . . Retrieved Components . | . . Parts Scanalyzed . | . . Part Schematics Acquired . | . . Parts Damaged . | . . Bothacking | -11 -10 ------------ Run | Scr Mat Used RIF Installer . | . . Robots Hacked . | . . Non-combat . | . . Combat . | . . Robot Hacks Applied . | . . Relay Couplers Released . | . . Robots Rewired . | . . Allies Hacked . | . . Hacks Repelled . | . . Allies | -11 -10 -------- Run | Scr Mat Total Allies . | . . Largest Group . | . . Highest-Rated Group . | . . Highest-Rated Ally . | . . Total Orders . | . . Ally Attacks . | . . Total Damage . | . . Kills . | . . Allies Corrupted . | . . Allies Melted . | . . Intel | -11 -10 ------- Run | Scr Mat Robot Analysis Total . | . . Derelict Logs Recovered . | . . Drone Launches . | . . Drone Recoveries . | . . Exploration | -11 -10 ------------- Run | Scr Mat Turns Passed 248 | 70 178 Spaces Moved 154 | 55 99 Core 9 | 4 5 Treads . | . . Legs . | . . Wheels 145 | 51 94 Hover . | . . Flight . | . . Fastest Speed 50 | 50 90 Average Speed 89 | 87 91 Slowest Speed 150 | 100 150 Overloaded Moves . | . . Propulsion Burnouts . | . . Robots Hopped . | . . Cave-ins Triggered . | . . Exploration Rate (%) 11 | 3 19 Regions Visited 1 Branch Regions . Pre-discovered Areas . | . . Known Exits Taken . | . . Unknown Exits Taken 1 | 1 . Scrap Searched . | . . Spaces Dug . | . . Terrain Destroyed . | . . Melee . | . . Projectile . | . . AOE . | . . Terrain Rammed . | . . Walls Destroyed . | . . Machines Disabled . | . . Actions | -11 -10 --------- Run | Scr Mat Total 226 | 71 155 Wait 24 | 3 21 Move 153 | 54 99 Hop . | . . Pick Up 6 | 6 . Fast Attach 8 | 6 2 Attach 5 | . 5 Detach . | . . Swap . | . . Drop 2 | . 2 Fire 28 | 2 26 Melee . | . . Ram . | . . Kick . | . . Crush . | . . Escape Stasis . | . . Rewire . | . . Trap . | . . Miscellaneous . | . . Route ------- -11/Scrapyard -10/Materials History --------- Turn | Location | Event 24 | -11/Scrapyard | Discovered new exit (range 15) 71 | -11/Scrapyard | Entered Materials 221 | -10/Materials | Core integrity fell below 50% 234 | -10/Materials | Core integrity fell below 20% 249 | -10/Materials | Destroyed by G-47 Trooper with Particle Gun Last Messages --------------- 00192_ G-34 Mercenary overheating. 00192_ G-34 Mercenary destroyed. 00197_ R-06 Scavenger collects Aluminum Leg. 00197_ Wheel destroyed. 00201_ Lgt. Ion Engine destroyed. 00212_ Com. Wheel destroyed. 00214_ Lgt. Ion Engine destroyed. 00215_ Acquired Med. Laser. 00216_ Med. Laser destroyed. 00218_ Acquired Sml. Laser. 00222_ Destroyed Particle Gun. 00226_ U-05 Engineer lays Concrete. 00229_ Lgt. Assault Rifle destroyed. 00232_ K-01 Serf collects debris. 00234_ R-06 Scavenger collects Aluminum Leg. 00234_ Acquired 38 matter. 00237_ K-01 Serf collects debris. 00239_ Lgt. Treads destroyed. 00240_ Sml. Laser destroyed. 00242_ K-01 Serf collects debris. Map ----- +----------------------------------------------------+ | ?????????????????????????? #???????????????????? | | ?????????????????????????? #???????????????????? | | ?????????????????????????# #???????????????????? | | ?????????????????????????# #???????????????????? | | ?????????????????????????" #???????????????????? | | ?????????????????????????T #???????????????????? | | ?????????????????????????" #???????????????????? | | ?????????????????????????# +???????????????????? | | ?????????????????????????# #???????????????????? | | ?????????????????????????# #???????????????????? | | ???????????????????????### #???????????????????? | | ???????????????????????#"" #???????????????????? | | ???????????????????????#"T #???????????????????? | | ???????????????????????#"" #???????????????????? | | ???????????????????????### +???????????????????? | | ?????????????????????????# ^#???????????????????? | | ?????????????????????????# #???????????????????? | | ????????????????????????## ##????+#????????????? | | ????????????????????????# ##### ##???????????? | | ?################???????# #???????????? | | ?# #???????# T #######?????? | | ?# #???????# | | ?# #???????# #### ######??????? | | ?##"""T"""### ###########+###??# #???????????? | | ??#########?# # k #???# #???????????? | | ????????????# # @ #???# #???????????? | | ????????????# + g #???# #???????????? | | ????????????# # g #???# #???????????? | | ????????????# # #???# #???????????? | | ????????????# ######+#######???# #???????????? | | ?????????#####+#####?# #?????????# #???????????? | | ?????????# #?# ########### ###?????????? | | ?????????# """ ### #?????????? | | ?????????# """"" + #?????????? | | ?????????# """"" ### #?????????? | | ?????????# """"" #?####+########## #?????????? | | ?????????# """ #???# #????? #?????????? | | ????????????? #???# #????? #?????????? | | ??????????????? #???# """ #????? #?????????? | | ?????????????????###???#= """ #????? #?????????? | | ???????????????????????# """ #????? #?????????? | | ???????????????????????# #?????? #?????????? | | ???????????????????????########?????? #?????????? | | ?????????????????????????????????????? #?????????? | | ?????????????????????????????????????? ??????????? | | ?????????????????????????????????????????????????? | | ?????????????????????????????????????????????????? | | ?????????????????????????????????????????????????? | | ?????????????????????????????????????????????????? | | ?????????????????????????????????????????????????? | +----------------------------------------------------+ Best States ------------- Heat Dissipation 25 Energy Generation 10 Energy Capacity 125 Matter Stores 274 Matter Capacity 300 Sight Range 16 Terrain Scan Density 10 Evasion (%) 50 Item Schematics ----------------- None Robot Schematics ------------------ None Fabricated ------------ Nothing Alien Tech Used ----------------- None Achievements -------------- None Challenges ------------ None Game ------ Seed IntegratedSegregatorRigger Manual? 0 Play Time 00:06:31 Cumulative 51.1 hours Start 2020.09.16 @ 10:25:32 End 2020.09.16 @ 17:57:54 Sessions 2 Manual Loads 0 Difficulty Rogue Special Mode None Game No. 45 Rogue 45 Adventurer 0 Explorer 0 Win Type - Total 1 Types 1/0/0/0/0/0/0/0/0 Lore% 24 Gallery% 38 Achievement% 26 Wizard Run 0 Options --------- ASCII 0 Keyboard 0 Movement Numpad Keybinds 1 Fullscreen 2 Font 18/X11 Map View 76x50 Tactical HUD 1 Map Filters NONE Filters BRIGHTNESS(120) Steam 1 RUN: 3f7b8deb-7dc8-4892-901f-d77a62c500b6